[Event "*** SCC Grand Prix: Titled Tuesday Blitz"]
[Site "Chess.com"]
[Date "2020.07.07"]
[Round "8"]
[White "MF1966Idrisov"]
[Black "yamalchess"]
[Result "1-0"]
[WhiteElo "2335"]
[BlackElo "2427"]
[TimeControl "180+1"]
[EndTime "11:35:56 PDT"]
[Termination "MF1966Idrisov won on time"]

1. Nf3 {[%clk 0:02:57.4]} 1... Nf6 {[%clk 0:02:59.4]} 2. b3 {[%clk 0:02:56.9]}
2... g6 {[%clk 0:02:58.1]} 3. Bb2 {[%clk 0:02:56.8]} 3... Bg7 {[%clk 0:02:58.8]}
4. c4 {[%clk 0:02:56.9]} 4... O-O {[%clk 0:02:59.1]} 5. g3 {[%clk 0:02:57.2]}
5... d6 {[%clk 0:02:59.6]} 6. d4 {[%clk 0:02:56.5]} 6... Nfd7 {[%clk 0:02:54]}
7. Bg2 {[%clk 0:02:55.9]} 7... Nc6 {[%clk 0:02:54.1]} 8. O-O {[%clk 0:02:55.1]}
8... e5 {[%clk 0:02:54.2]} 9. dxe5 {[%clk 0:02:55.2]} 9... Ndxe5 {[%clk
0:02:49.4]} 10. Nc3 {[%clk 0:02:54.4]} 10... Bf5 {[%clk 0:02:46.7]} 11. Qd2
{[%clk 0:02:53.6]} 11... Re8 {[%clk 0:02:44.8]} 12. Rfe1 {[%clk 0:02:52.6]}
12... Qd7 {[%clk 0:02:40.3]} 13. Nd5 {[%clk 0:02:51.6]} 13... Rad8 {[%clk
0:02:32.4]} 14. Rad1 {[%clk 0:02:41.3]} 14... a5 {[%clk 0:02:22.8]} 15. Nd4
{[%clk 0:02:28.7]} 15... Nxd4 {[%clk 0:02:18.6]} 16. Bxd4 {[%clk 0:02:28]} 16...
c6 {[%clk 0:02:06.5]} 17. Ne3 {[%clk 0:02:26.1]} 17... Qc7 {[%clk 0:02:04.2]}
18. Nxf5 {[%clk 0:02:22.4]} 18... gxf5 {[%clk 0:02:01.4]} 19. Qg5 {[%clk
0:02:14.9]} 19... c5 {[%clk 0:01:35.9]} 20. Ba1 {[%clk 0:01:58.2]} 20... a4
{[%clk 0:01:28.7]} 21. Bh3 {[%clk 0:01:52.9]} 21... axb3 {[%clk 0:01:27.9]} 22.
axb3 {[%clk 0:01:52.1]} 22... Qa5 {[%clk 0:01:08.6]} 23. Bxf5 {[%clk 0:01:46]}
23... h6 {[%clk 0:01:02]} 24. Qh5 {[%clk 0:01:28.4]} 24... Qa2 {[%clk
0:00:50.8]} 25. Be4 {[%clk 0:01:19.2]} 25... Qxb3 {[%clk 0:00:46]} 26. Bd5
{[%clk 0:01:19.2]} 26... Re7 {[%clk 0:00:41.3]} 27. f4 {[%clk 0:01:10.4]} 27...
Qe3+ {[%clk 0:00:31.4]} 28. Kh1 {[%clk 0:01:07]} 28... Nd3 {[%clk 0:00:17.7]}
29. exd3 {[%clk 0:00:52.4]} 29... Qxe1+ {[%clk 0:00:17.4]} 30. Rxe1 {[%clk
0:00:51.8]} 30... Rxe1+ {[%clk 0:00:17.4]} 31. Kg2 {[%clk 0:00:52]} 31... Rxa1
{[%clk 0:00:12.6]} 32. Qxf7+ {[%clk 0:00:49.8]} 32... Kh8 {[%clk 0:00:12.7]} 33.
Qxb7 {[%clk 0:00:49.1]} 33... Re8 {[%clk 0:00:11.7]} 34. Be4 {[%clk 0:00:48.9]}
34... Ra2+ {[%clk 0:00:08.7]} 35. Kh3 {[%clk 0:00:48.3]} 35... Rf8 {[%clk
0:00:07.1]} 36. Qe7 {[%clk 0:00:43.5]} 36... Re2 {[%clk 0:00:03.8]} 37. Qxd6
{[%clk 0:00:42.7]} 1-0

[Event "*** SCC Grand Prix: Titled Tuesday Blitz"]
[Site "Chess.com"]
[Date "2020.07.07"]
[Round "8"]
[White "Micki-taryan"]
[Black "EvgenyT"]
[Result "1-0"]
[WhiteElo "3052"]
[BlackElo "2882"]
[TimeControl "180+1"]
[EndTime "11:35:57 PDT"]
[Termination "Micki-taryan won by resignation"]

1. Nf3 {[%clk 0:03:00.9]} 1... d5 {[%clk 0:02:59.3]} 2. d4 {[%clk 0:03:01]} 2...
Nf6 {[%clk 0:02:58]} 3. c4 {[%clk 0:03:01.3]} 3... e6 {[%clk 0:02:57.6]} 4. Nc3
{[%clk 0:03:01.9]} 4... Be7 {[%clk 0:02:57.3]} 5. Bg5 {[%clk 0:03:02.3]} 5... h6
{[%clk 0:02:55.6]} 6. Bxf6 {[%clk 0:03:02.6]} 6... Bxf6 {[%clk 0:02:55.4]} 7. e3
{[%clk 0:03:03.1]} 7... c6 {[%clk 0:02:55.3]} 8. Rc1 {[%clk 0:03:03.4]} 8... O-O
{[%clk 0:02:53.1]} 9. Bd3 {[%clk 0:03:03.7]} 9... Nd7 {[%clk 0:02:50.9]} 10. O-O
{[%clk 0:03:03.4]} 10... dxc4 {[%clk 0:02:42.6]} 11. Bxc4 {[%clk 0:03:04.3]}
11... e5 {[%clk 0:02:43]} 12. d5 {[%clk 0:03:04.8]} 12... Nb6 {[%clk 0:02:40.3]}
13. b3 {[%clk 0:03:05.1]} 13... Bf5 {[%clk 0:02:31.5]} 14. e4 {[%clk 0:03:01.7]}
14... Bg4 {[%clk 0:02:29.4]} 15. dxc6 {[%clk 0:03:00.5]} 15... Qxd1 {[%clk
0:02:23.8]} 16. Nxd1 {[%clk 0:02:57.7]} 16... bxc6 {[%clk 0:02:20.4]} 17. Be2
{[%clk 0:02:49.8]} 17... Rac8 {[%clk 0:02:07.8]} 18. Ne3 {[%clk 0:02:38.6]}
18... Bxf3 {[%clk 0:01:46.1]} 19. Bxf3 {[%clk 0:02:39.5]} 19... Bg5 {[%clk
0:01:45.9]} 20. Rc3 {[%clk 0:02:39.9]} 20... Rfd8 {[%clk 0:01:40]} 21. a4 {[%clk
0:02:13.2]} 21... Bxe3 {[%clk 0:01:21.8]} 22. Rxe3 {[%clk 0:02:10.7]} 22... Rd4
{[%clk 0:01:21]} 23. Rc1 {[%clk 0:02:08.4]} 23... Rc7 {[%clk 0:01:05.4]} 24.
Rec3 {[%clk 0:02:02.3]} 24... Rb4 {[%clk 0:00:33.3]} 25. h4 {[%clk 0:02:00.6]}
25... Kf8 {[%clk 0:00:10.8]} 26. Rxc6 {[%clk 0:01:16.4]} 26... Rxc6 {[%clk
0:00:10.3]} 27. Rxc6 {[%clk 0:01:17.3]} 27... Rxb3 {[%clk 0:00:10.5]} 28. a5
{[%clk 0:01:15.6]} 28... Na4 {[%clk 0:00:06.1]} 29. Rc8+ {[%clk 0:01:10.4]}
29... Ke7 {[%clk 0:00:05.8]} 30. Rc7+ {[%clk 0:01:11.3]} 30... Kf6 {[%clk
0:00:05.9]} 31. Rxa7 {[%clk 0:01:06.1]} 31... Nc5 {[%clk 0:00:05.7]} 32. Be2
{[%clk 0:00:56.2]} 32... Rc3 {[%clk 0:00:03.4]} 33. Rc7 {[%clk 0:00:51.4]} 33...
Ke6 {[%clk 0:00:01.8]} 34. a6 {[%clk 0:00:45.4]} 34... Kd6 {[%clk 0:00:01.8]}
35. Rxf7 {[%clk 0:00:45.9]} 35... Rc1+ {[%clk 0:00:01.6]} 36. Kh2 {[%clk
0:00:45.7]} 36... Nxe4 {[%clk 0:00:02.2]} 37. a7 {[%clk 0:00:45.8]} 37... Ra1
{[%clk 0:00:02.1]} 38. Bf3 {[%clk 0:00:46.3]} 38... Nd2 {[%clk 0:00:02]} 39.
a8=Q {[%clk 0:00:44.5]} 39... Rxa8 {[%clk 0:00:02]} 40. Bxa8 {[%clk 0:00:45.4]}
1-0

[Event "*** SCC Grand Prix: Titled Tuesday Blitz"]
[Site "Chess.com"]
[Date "2020.07.07"]
[Round "8"]
[White "LedakovAlexandr"]
[Black "chessplayer9919"]
[Result "1-0"]
[WhiteElo "2503"]
[BlackElo "2643"]
[TimeControl "180+1"]
[EndTime "11:35:58 PDT"]
[Termination "LedakovAlexandr won by checkmate"]

1. d4 {[%clk 0:02:51.4]} 1... Nf6 {[%clk 0:02:58.6]} 2. Nf3 {[%clk 0:02:51.7]}
2... e6 {[%clk 0:02:58.7]} 3. Bg5 {[%clk 0:02:51.3]} 3... d5 {[%clk 0:02:58.1]}
4. Nbd2 {[%clk 0:02:50.2]} 4... Be7 {[%clk 0:02:58.3]} 5. e3 {[%clk 0:02:50.4]}
5... O-O {[%clk 0:02:57.1]} 6. Bd3 {[%clk 0:02:50.9]} 6... c5 {[%clk 0:02:54.1]}
7. c3 {[%clk 0:02:51.3]} 7... Nc6 {[%clk 0:02:53.5]} 8. Ne5 {[%clk 0:02:51.8]}
8... h6 {[%clk 0:02:52.1]} 9. Bxf6 {[%clk 0:02:51.5]} 9... Bxf6 {[%clk
0:02:51.7]} 10. f4 {[%clk 0:02:52]} 10... cxd4 {[%clk 0:02:44.2]} 11. exd4
{[%clk 0:02:51.6]} 11... Qb6 {[%clk 0:02:28.1]} 12. Rb1 {[%clk 0:02:38.9]} 12...
Nxe5 {[%clk 0:01:57.5]} 13. fxe5 {[%clk 0:02:37.3]} 13... Be7 {[%clk 0:01:57.5]}
14. O-O {[%clk 0:02:34.3]} 14... f6 {[%clk 0:01:55.5]} 15. exf6 {[%clk
0:02:30.2]} 15... Bxf6 {[%clk 0:01:55.6]} 16. Kh1 {[%clk 0:02:27.7]} 16... Bd7
{[%clk 0:01:53.3]} 17. Qe2 {[%clk 0:01:56.8]} 17... Rae8 {[%clk 0:01:49.2]} 18.
Nf3 {[%clk 0:01:54]} 18... Qc7 {[%clk 0:01:41.4]} 19. Rbe1 {[%clk 0:01:42.2]}
19... Re7 {[%clk 0:01:09.4]} 20. Bb1 {[%clk 0:01:34.9]} 20... Be8 {[%clk
0:00:21.6]} 21. Qd3 {[%clk 0:01:20.4]} 21... g6 {[%clk 0:00:21.9]} 22. Ne5
{[%clk 0:01:07.8]} 22... Bxe5 {[%clk 0:00:17.8]} 23. Rxf8+ {[%clk 0:01:07.1]}
23... Kxf8 {[%clk 0:00:18.7]} 24. Rxe5 {[%clk 0:01:06.8]} 24... Rf7 {[%clk
0:00:12.8]} 25. Kg1 {[%clk 0:00:47]} 25... Qe7 {[%clk 0:00:08.2]} 26. Qe3 {[%clk
0:00:43]} 26... Kg7 {[%clk 0:00:02]} 27. Rxe6 {[%clk 0:00:41.7]} 27... Qf8
{[%clk 0:00:02.4]} 28. Rxg6+ {[%clk 0:00:37.1]} 28... Kh8 {[%clk 0:00:01.6]} 29.
Rxh6+ {[%clk 0:00:31.9]} 29... Kg8 {[%clk 0:00:02]} 30. Rg6+ {[%clk 0:00:28.1]}
30... Kh8 {[%clk 0:00:02.1]} 31. Qh6+ {[%clk 0:00:25.3]} 31... Rh7 {[%clk
0:00:02.6]} 32. Qxf8# {[%clk 0:00:24.7]} 1-0

[Event "*** SCC Grand Prix: Titled Tuesday Blitz"]
[Site "Chess.com"]
[Date "2020.07.07"]
[Round "8"]
[White "Alexandercs432"]
[Black "tan275"]
[Result "0-1"]
[WhiteElo "2125"]
[BlackElo "2270"]
[TimeControl "180+1"]
[EndTime "11:35:58 PDT"]
[Termination "tan275 won on time"]

1. e4 {[%clk 0:03:00]} 1... c6 {[%clk 0:02:59.7]} 2. d4 {[%clk 0:02:59.7]} 2...
d5 {[%clk 0:03:00.2]} 3. e5 {[%clk 0:03:00.3]} 3... Bf5 {[%clk 0:03:00]} 4. h4
{[%clk 0:03:00.7]} 4... h5 {[%clk 0:02:59.6]} 5. Bg5 {[%clk 0:03:00.9]} 5... Qb6
{[%clk 0:02:57.3]} 6. Bd3 {[%clk 0:03:01.6]} 6... Qxd4 {[%clk 0:02:53.1]} 7.
Bxf5 {[%clk 0:03:00.9]} 7... Qxe5+ {[%clk 0:02:51.7]} 8. Ne2 {[%clk 0:02:56.9]}
8... Qxf5 {[%clk 0:02:51.2]} 9. O-O {[%clk 0:02:54.3]} 9... e6 {[%clk 0:02:43]}
10. Nd2 {[%clk 0:02:51.1]} 10... Be7 {[%clk 0:02:42.2]} 11. Nf3 {[%clk
0:02:43.9]} 11... Bxg5 {[%clk 0:02:36.3]} 12. Nxg5 {[%clk 0:02:44.8]} 12... Nf6
{[%clk 0:02:34]} 13. Ng3 {[%clk 0:02:44.2]} 13... Qg6 {[%clk 0:02:33.1]} 14. Re1
{[%clk 0:02:41.2]} 14... O-O {[%clk 0:02:32.7]} 15. Qe2 {[%clk 0:02:30.8]} 15...
Nbd7 {[%clk 0:02:31.1]} 16. Rad1 {[%clk 0:02:28.3]} 16... e5 {[%clk 0:02:22.3]}
17. c4 {[%clk 0:02:22.6]} 17... e4 {[%clk 0:02:19.7]} 18. b4 {[%clk 0:02:16.9]}
18... Ne5 {[%clk 0:02:17.2]} 19. cxd5 {[%clk 0:02:14.2]} 19... cxd5 {[%clk
0:02:16.3]} 20. Rc1 {[%clk 0:02:09.6]} 20... Nd3 {[%clk 0:02:15.1]} 21. Rc7
{[%clk 0:02:06.3]} 21... Nxe1 {[%clk 0:02:12.5]} 22. Qxe1 {[%clk 0:02:07.2]}
22... d4 {[%clk 0:01:53.5]} 23. N3xe4 {[%clk 0:02:03.8]} 23... Nxe4 {[%clk
0:01:51.4]} 24. Nxe4 {[%clk 0:01:17.7]} 24... Rfe8 {[%clk 0:01:49.7]} 25. f3
{[%clk 0:01:04.1]} 25... f5 {[%clk 0:01:48.9]} 26. Qg3 {[%clk 0:00:54.8]} 26...
Qxg3 {[%clk 0:01:43.8]} 27. Nxg3 {[%clk 0:00:55.7]} 27... d3 {[%clk 0:01:39.4]}
28. Nxh5 {[%clk 0:00:23.6]} 28... d2 {[%clk 0:01:36.8]} 29. Rxg7+ {[%clk
0:00:21.7]} 29... Kf8 {[%clk 0:01:34.5]} 30. Rd7 {[%clk 0:00:18.3]} 30... Rad8
{[%clk 0:01:29.6]} 31. Rh7 {[%clk 0:00:04.9]} 31... d1=Q+ {[%clk 0:01:27.1]} 32.
Kh2 {[%clk 0:00:04.9]} 32... Qd6+ {[%clk 0:01:10.5]} 33. f4 {[%clk 0:00:03.6]}
33... Qd4 {[%clk 0:01:08.5]} 34. Rh6 {[%clk 0:00:02.5]} 34... Rd6 {[%clk
0:01:04.7]} 35. Nf6 {[%clk 0:00:03.4]} 35... Rxf6 {[%clk 0:01:04.1]} 36. Rh8+
{[%clk 0:00:03.3]} 36... Kf7 {[%clk 0:01:02.8]} 37. Rh7+ {[%clk 0:00:03.3]}
37... Kg8 {[%clk 0:01:02]} 0-1

[Event "*** SCC Grand Prix: Titled Tuesday Blitz"]
[Site "Chess.com"]
[Date "2020.07.07"]
[Round "8"]
[White "Rish_97"]
[Black "eljanov"]
[Result "0-1"]
[WhiteElo "2662"]
[BlackElo "2875"]
[TimeControl "180+1"]
[EndTime "11:35:59 PDT"]
[Termination "eljanov won by resignation"]

1. d4 {[%clk 0:03:00.9]} 1... Nf6 {[%clk 0:02:59]} 2. Nf3 {[%clk 0:03:01]} 2...
e6 {[%clk 0:02:59.2]} 3. c4 {[%clk 0:03:00.1]} 3... d5 {[%clk 0:02:59.3]} 4. Nc3
{[%clk 0:02:59.5]} 4... Be7 {[%clk 0:02:59.5]} 5. Bg5 {[%clk 0:02:37.8]} 5... h6
{[%clk 0:02:58.2]} 6. Bxf6 {[%clk 0:02:36.7]} 6... Bxf6 {[%clk 0:02:58.3]} 7. e3
{[%clk 0:02:37.2]} 7... O-O {[%clk 0:02:56.7]} 8. h4 {[%clk 0:02:34.5]} 8... g6
{[%clk 0:02:51.7]} 9. Qc2 {[%clk 0:02:32.7]} 9... c5 {[%clk 0:02:36]} 10. O-O-O
{[%clk 0:02:05.9]} 10... cxd4 {[%clk 0:02:28.1]} 11. exd4 {[%clk 0:02:04.3]}
11... Nc6 {[%clk 0:02:16.4]} 12. g4 {[%clk 0:02:01.2]} 12... Bg7 {[%clk
0:02:09.2]} 13. Kb1 {[%clk 0:01:57.5]} 13... b6 {[%clk 0:01:57.8]} 14. g5 {[%clk
0:01:54.4]} 14... h5 {[%clk 0:01:53.5]} 15. Bg2 {[%clk 0:01:26.2]} 15... Bb7
{[%clk 0:01:50.9]} 16. cxd5 {[%clk 0:01:13.2]} 16... Nb4 {[%clk 0:01:50.8]} 17.
Qb3 {[%clk 0:01:12.7]} 17... Nxd5 {[%clk 0:01:50.6]} 18. Rhe1 {[%clk 0:01:00.8]}
18... Nxc3+ {[%clk 0:01:10.3]} 19. Qxc3 {[%clk 0:01:00.5]} 19... Rc8 {[%clk
0:01:10]} 20. Qa3 {[%clk 0:00:58.3]} 20... Bd5 {[%clk 0:00:51.1]} 21. Bh1 {[%clk
0:00:53.5]} 21... Qc7 {[%clk 0:00:49.8]} 22. Rc1 {[%clk 0:00:35.7]} 22... Qf4
{[%clk 0:00:49.2]} 23. Qe3 {[%clk 0:00:35]} 23... Qg4 {[%clk 0:00:42.7]} 24. Ne5
{[%clk 0:00:33.6]} 24... Bxe5 {[%clk 0:00:34.7]} 25. dxe5 {[%clk 0:00:28.9]}
25... Bxh1 {[%clk 0:00:30.1]} 26. Rxh1 {[%clk 0:00:29.8]} 26... Rxc1+ {[%clk
0:00:30.6]} 27. Kxc1 {[%clk 0:00:26.2]} 27... Qf5 {[%clk 0:00:30.1]} 28. b3
{[%clk 0:00:18.6]} 28... Rc8+ {[%clk 0:00:28.9]} 29. Kb2 {[%clk 0:00:19]} 29...
Qc2+ {[%clk 0:00:26.3]} 30. Ka3 {[%clk 0:00:19.3]} 30... Rc5 {[%clk 0:00:26.1]}
31. Qd4 {[%clk 0:00:16.8]} 31... Ra5+ {[%clk 0:00:24.1]} 32. Kb4 {[%clk
0:00:17.1]} 32... Rd5 {[%clk 0:00:24.4]} 33. Qc4 {[%clk 0:00:15.2]} 33... Qxa2
{[%clk 0:00:24.7]} 34. Qc8+ {[%clk 0:00:13.2]} 34... Kg7 {[%clk 0:00:24.8]} 35.
Rc1 {[%clk 0:00:13.8]} 35... Qa5+ {[%clk 0:00:24.1]} 36. Kc4 {[%clk 0:00:13.5]}
36... Rc5+ {[%clk 0:00:24.4]} 0-1

[Event "*** SCC Grand Prix: Titled Tuesday Blitz"]
[Site "Chess.com"]
[Date "2020.07.07"]
[Round "8"]
[White "boasovietica"]
[Black "BJthechessgod"]
[Result "0-1"]
[WhiteElo "2434"]
[BlackElo "2337"]
[TimeControl "180+1"]
[EndTime "11:35:59 PDT"]
[Termination "BJthechessgod won on time"]

1. e4 {[%clk 0:03:00.9]} 1... d6 {[%clk 0:02:57.8]} 2. d4 {[%clk 0:03:00.2]}
2... Nf6 {[%clk 0:02:56.8]} 3. f3 {[%clk 0:03:00.3]} 3... g6 {[%clk 0:02:57]} 4.
Ne2 {[%clk 0:03:00.1]} 4... Bg7 {[%clk 0:02:57.1]} 5. c4 {[%clk 0:03:00.6]} 5...
O-O {[%clk 0:02:57.2]} 6. Nbc3 {[%clk 0:03:01]} 6... Nbd7 {[%clk 0:02:54.8]} 7.
Be3 {[%clk 0:03:01.2]} 7... e5 {[%clk 0:02:53.2]} 8. Qd2 {[%clk 0:03:01.4]} 8...
exd4 {[%clk 0:02:47.1]} 9. Nxd4 {[%clk 0:03:01]} 9... Ne5 {[%clk 0:02:45.1]} 10.
Be2 {[%clk 0:03:00.1]} 10... Be6 {[%clk 0:02:43.6]} 11. b3 {[%clk 0:02:59.3]}
11... Nc6 {[%clk 0:02:41.6]} 12. O-O {[%clk 0:02:46.1]} 12... Nd7 {[%clk
0:02:32.3]} 13. Nc2 {[%clk 0:02:26.5]} 13... a6 {[%clk 0:01:43]} 14. Rac1 {[%clk
0:02:19.9]} 14... Rb8 {[%clk 0:01:38.4]} 15. Nd5 {[%clk 0:02:15.3]} 15... Bxd5
{[%clk 0:01:37.7]} 16. cxd5 {[%clk 0:02:15.1]} 16... Ne7 {[%clk 0:01:36.1]} 17.
Nd4 {[%clk 0:02:12.2]} 17... Re8 {[%clk 0:01:25.2]} 18. Rc2 {[%clk 0:01:57]}
18... Nc5 {[%clk 0:01:16.6]} 19. b4 {[%clk 0:01:51.7]} 19... Na4 {[%clk
0:01:16.2]} 20. Rfc1 {[%clk 0:01:49.2]} 20... Rc8 {[%clk 0:01:15.9]} 21. Qd3
{[%clk 0:01:29.3]} 21... Qd7 {[%clk 0:01:06.9]} 22. Qb3 {[%clk 0:01:07.2]} 22...
Nb6 {[%clk 0:01:01.7]} 23. b5 {[%clk 0:00:57.2]} 23... a5 {[%clk 0:00:59.1]} 24.
Qa3 {[%clk 0:00:49]} 24... a4 {[%clk 0:00:56.3]} 25. Qb4 {[%clk 0:00:44]} 25...
h5 {[%clk 0:00:37]} 26. a3 {[%clk 0:00:34.6]} 26... Kh7 {[%clk 0:00:34.5]} 27.
Qd2 {[%clk 0:00:24.6]} 27... Ng8 {[%clk 0:00:34.4]} 28. Bd3 {[%clk 0:00:19.6]}
28... Nf6 {[%clk 0:00:27.2]} 29. h3 {[%clk 0:00:12.6]} 29... Qe7 {[%clk
0:00:24.8]} 30. Bg5 {[%clk 0:00:10.9]} 30... Qe5 {[%clk 0:00:20.1]} 0-1

[Event "*** SCC Grand Prix: Titled Tuesday Blitz"]
[Site "Chess.com"]
[Date "2020.07.07"]
[Round "8"]
[White "CarlosAlbornoz"]
[Black "FairChess_on_YouTube"]
[Result "0-1"]
[WhiteElo "2807"]
[BlackElo "2996"]
[TimeControl "180+1"]
[EndTime "11:36:03 PDT"]
[Termination "FairChess_on_YouTube won by checkmate"]

1. e4 {[%clk 0:03:00.9]} 1... c5 {[%clk 0:02:56.9]} 2. Nf3 {[%clk 0:03:00.5]}
2... Nc6 {[%clk 0:02:56.7]} 3. d4 {[%clk 0:03:00.8]} 3... cxd4 {[%clk
0:02:56.5]} 4. Nxd4 {[%clk 0:03:01.7]} 4... Qc7 {[%clk 0:02:55.7]} 5. Nc3 {[%clk
0:03:00.6]} 5... e6 {[%clk 0:02:56]} 6. Be3 {[%clk 0:03:00.5]} 6... a6 {[%clk
0:02:52.8]} 7. Qf3 {[%clk 0:03:00.4]} 7... Nf6 {[%clk 0:02:51.5]} 8. O-O-O
{[%clk 0:02:59.9]} 8... Rb8 {[%clk 0:02:52]} 9. Be2 {[%clk 0:02:47.2]} 9... Bb4
{[%clk 0:02:48.1]} 10. Nxc6 {[%clk 0:02:32.3]} 10... bxc6 {[%clk 0:02:49]} 11.
Bd4 {[%clk 0:02:27.7]} 11... Bd6 {[%clk 0:02:16.7]} 12. Na4 {[%clk 0:02:04.3]}
12... Rb4 {[%clk 0:02:04.1]} 13. b3 {[%clk 0:01:53.8]} 13... Be5 {[%clk
0:01:57.6]} 14. Bc5 {[%clk 0:01:45.6]} 14... Rxe4 {[%clk 0:01:49.1]} 15. Bd3
{[%clk 0:01:44.9]} 15... Rxa4 {[%clk 0:01:35.5]} 16. bxa4 {[%clk 0:01:44.4]}
16... Qa5 {[%clk 0:01:22.4]} 17. Ba3 {[%clk 0:01:16.1]} 17... Qxa4 {[%clk
0:01:02]} 18. Bb2 {[%clk 0:01:01.5]} 18... Bxb2+ {[%clk 0:01:01.3]} 19. Kxb2
{[%clk 0:01:02.4]} 19... O-O {[%clk 0:01:00.4]} 20. Rb1 {[%clk 0:00:58]} 20...
e5 {[%clk 0:00:51.9]} 21. Rhe1 {[%clk 0:00:51.8]} 21... d5 {[%clk 0:00:51.6]}
22. Qe3 {[%clk 0:00:46.1]} 22... e4 {[%clk 0:00:37.7]} 23. Be2 {[%clk
0:00:44.2]} 23... Be6 {[%clk 0:00:35.6]} 24. c3 {[%clk 0:00:33.6]} 24... d4
{[%clk 0:00:29.2]} 25. Qxd4 {[%clk 0:00:33.3]} 25... Qxa2+ {[%clk 0:00:29.2]}
26. Kc1 {[%clk 0:00:33.1]} 26... Nd5 {[%clk 0:00:27.3]} 27. Bc4 {[%clk
0:00:28.5]} 27... Qa3+ {[%clk 0:00:26.8]} 28. Rb2 {[%clk 0:00:28.7]} 28... Nxc3
{[%clk 0:00:18]} 29. Bxe6 {[%clk 0:00:20.2]} 29... fxe6 {[%clk 0:00:18.9]} 30.
Kc2 {[%clk 0:00:17.3]} 30... Nb5 {[%clk 0:00:14.5]} 31. Qxe4 {[%clk 0:00:13.2]}
31... Rxf2+ {[%clk 0:00:13.1]} 32. Re2 {[%clk 0:00:13.6]} 32... Rxe2+ {[%clk
0:00:13]} 33. Kb1 {[%clk 0:00:10.2]} 33... Qxb2# {[%clk 0:00:12.4]} 0-1

[Event "*** SCC Grand Prix: Titled Tuesday Blitz"]
[Site "Chess.com"]
[Date "2020.07.07"]
[Round "8"]
[White "ChessLover0108"]
[Black "druskacik"]
[Result "1-0"]
[WhiteElo "2694"]
[BlackElo "2582"]
[TimeControl "180+1"]
[EndTime "11:36:03 PDT"]
[Termination "ChessLover0108 won by checkmate"]

1. Nf3 {[%clk 0:03:00.9]} 1... c5 {[%clk 0:02:55.8]} 2. c4 {[%clk 0:02:58]} 2...
g6 {[%clk 0:02:55.3]} 3. Nc3 {[%clk 0:02:57.3]} 3... Bg7 {[%clk 0:02:55.1]} 4.
e3 {[%clk 0:02:58.1]} 4... e5 {[%clk 0:02:52.1]} 5. d4 {[%clk 0:02:52.7]} 5...
Nc6 {[%clk 0:02:37.9]} 6. d5 {[%clk 0:02:35.7]} 6... Nce7 {[%clk 0:02:36.8]} 7.
d6 {[%clk 0:02:31.5]} 7... Nf5 {[%clk 0:02:32.2]} 8. Nb5 {[%clk 0:02:28.3]} 8...
Rb8 {[%clk 0:02:28.5]} 9. Bd3 {[%clk 0:02:05.6]} 9... a6 {[%clk 0:02:21.5]} 10.
Nc7+ {[%clk 0:02:03.3]} 10... Kf8 {[%clk 0:02:21.5]} 11. Bxf5 {[%clk 0:02:03.7]}
11... gxf5 {[%clk 0:02:22.4]} 12. Qd5 {[%clk 0:02:01.6]} 12... f6 {[%clk
0:01:53.1]} 13. Qxc5 {[%clk 0:01:58.5]} 13... b6 {[%clk 0:01:51.7]} 14. Qa3
{[%clk 0:01:57.9]} 14... Nh6 {[%clk 0:01:46.5]} 15. Bd2 {[%clk 0:01:53.9]} 15...
Bb7 {[%clk 0:01:42.1]} 16. Bc3 {[%clk 0:01:52.8]} 16... Kf7 {[%clk 0:01:10.1]}
17. O-O-O {[%clk 0:01:50.8]} 17... Rg8 {[%clk 0:01:05.9]} 18. h3 {[%clk
0:01:47.9]} 18... Bf8 {[%clk 0:01:05.8]} 19. Rhg1 {[%clk 0:01:45.9]} 19... Rc8
{[%clk 0:00:59.4]} 20. Qb3 {[%clk 0:01:37.7]} 20... Kg7 {[%clk 0:00:30.5]} 21.
Nxe5 {[%clk 0:01:21.6]} 21... fxe5 {[%clk 0:00:29.6]} 22. Bxe5+ {[%clk
0:01:22.5]} 22... Kg6 {[%clk 0:00:27.9]} 23. g4 {[%clk 0:01:23]} 23... Bf3
{[%clk 0:00:14.5]} 24. Rd4 {[%clk 0:01:08.2]} 24... fxg4 {[%clk 0:00:05.9]} 25.
Rf4 {[%clk 0:01:07]} 25... Kh5 {[%clk 0:00:04.8]} 26. hxg4+ {[%clk 0:01:02.4]}
26... Kh4 {[%clk 0:00:04.5]} 27. g5+ {[%clk 0:01:01.5]} 27... Kh5 {[%clk
0:00:02.9]} 28. Rxf3 {[%clk 0:00:54.9]} 28... Rxg5 {[%clk 0:00:02.9]} 29. Rh3+
{[%clk 0:00:54.8]} 29... Kg6 {[%clk 0:00:03.2]} 30. Rxg5+ {[%clk 0:00:55.7]}
30... Qxg5 {[%clk 0:00:04]} 31. Rg3 {[%clk 0:00:55.2]} 31... Nf7 {[%clk
0:00:04.6]} 32. Rxg5+ {[%clk 0:00:55.1]} 32... Kxg5 {[%clk 0:00:05.5]} 33. Bf4+
{[%clk 0:00:54.9]} 33... Kg4 {[%clk 0:00:05.4]} 34. Qd3 {[%clk 0:00:55.8]} 34...
h5 {[%clk 0:00:03.1]} 35. Qg6+ {[%clk 0:00:54.8]} 35... Kf3 {[%clk 0:00:02.4]}
36. Qxf7 {[%clk 0:00:54.8]} 36... Ke2 {[%clk 0:00:03.3]} 37. Qxh5+ {[%clk
0:00:54.1]} 37... Kd3 {[%clk 0:00:03.2]} 38. Qf5+ {[%clk 0:00:54.5]} 38... Ke2
{[%clk 0:00:03.5]} 39. Qxd7 {[%clk 0:00:55.4]} 39... Rb8 {[%clk 0:00:03.2]} 40.
Nd5 {[%clk 0:00:54.6]} 40... b5 {[%clk 0:00:03]} 41. Qg4+ {[%clk 0:00:54.4]}
41... Kd3 {[%clk 0:00:03]} 42. d7 {[%clk 0:00:55.3]} 42... Kxc4 {[%clk
0:00:02.9]} 43. Bxb8+ {[%clk 0:00:53.7]} 43... Kxd5 {[%clk 0:00:03.8]} 44. d8=Q+
{[%clk 0:00:54.6]} 44... Kc6 {[%clk 0:00:03]} 45. Qgc8# {[%clk 0:00:53.9]} 1-0